bitfinex-derivatives/quotes_BTCF0:USTF0_20250402
["timestamp","ask_amount","ask_price","bid_price","bid_amount"]
[1743636932569,0.36796841,82703.0,82702.0,0.1254]
[1743636933270,0.1209499,82702.0,82701.0,0.0001219]
[1743636933466,0.1209543,82699.0,82695.0,0.1254]
[1743636933670,0.1225943,82699.0,82695.0,0.2521]
[1743636933884,0.2434943,82699.0,82695.0,0.2521]
[1743636935772,0.2434943,82699.0,82698.0,0.01655301]
[1743636937179,0.1209586,82696.0,82695.0,0.24665301]
[1743636937370,0.1225986,82696.0,82695.0,0.24665301]
[1743636937982,0.1225986,82696.0,82672.0,1.8608]
[1743636937983,0.1209777,82683.0,82672.0,0.3608]
[1743636938180,0.00164,82683.0,82682.0,0.12146288]
[1743636938381,0.00164,82683.0,82682.0,0.48226288]
[1743636938382,0.1209777,82683.0,82682.0,0.48226288]
[1743636938583,0.1226177,82683.0,82682.0,0.60386288]
[1743636938787,0.1226177,82683.0,82682.0,0.24306288]
[1743636939089,0.1226177,82683.0,82682.0,0.60386288]
[1743636939878,0.00164,82683.0,82682.0,0.60386288]
[1743636940085,0.060482,82693.0,82685.0,0.1814541]
[1743636940280,0.1209777,82684.0,82683.0,0.1814612]
[1743636940480,0.12269771,82684.0,82683.0,0.4330612]
[1743636942387,0.00172001,82684.0,82683.0,0.4330612]
[1743636942688,0.1209754,82685.0,82684.0,0.1209762]
[1743636942890,0.1226154,82685.0,82684.0,0.1209762]
[1743636943089,0.1226154,82685.0,82684.0,0.3734762]
[1743636943989,0.1226154,82685.0,82684.0,0.2525]
[1743636944183,0.1226154,82685.0,82684.0,0.3734762]
[1743636944387,0.1226154,82685.0,82684.0,0.3514762]
[1743636945286,0.00164,82685.0,82684.0,0.3514762]
[1743636945684,0.1226147,82685.0,82684.0,0.3514762]
[1743636945888,0.1226147,82685.0,82684.0,0.2305]
[1743636946391,0.36039214,82685.0,82684.0,0.2305]
[1743636946984,0.48049214,82685.0,82684.0,0.2305]
[1743636947186,0.61099214,82685.0,82684.0,0.2305]
[1743636948289,0.1209777,82683.0,82682.0,0.00048378]
[1743636948489,0.12269771,82683.0,82682.0,0.00048378]
[1743636948694,0.24279771,82683.0,82682.0,0.00048378]
[1743636949194,0.24279771,82683.0,82682.0,0.02673297]
[1743636949493,0.60359771,82683.0,82682.0,0.02673297]
[1743636949695,0.73409771,82683.0,82682.0,0.02673297]
[1743636949885,0.73409771,82683.0,82682.0,0.0168914]
[1743636951291,0.73409771,82683.0,82670.0,0.4899]
[1743636951292,0.1209952,82671.0,82670.0,0.1291]
[1743636951487,0.1226752,82671.0,82670.0,0.1071]
[1743636951687,0.2482752,82671.0,82670.0,0.1071]
[1743636951880,0.2482752,82671.0,82670.0,0.13355244]
[1743636952085,0.3724752,82671.0,82670.0,0.13355244]
[1743636952385,0.2482752,82671.0,82670.0,0.13355244]
[1743636952580,0.2482752,82671.0,82670.0,0.1071]
[1743636953984,0.2482752,82671.0,82670.0,0.13344171]
[1743636954195,0.3071157,82671.0,82670.0,0.13344171]
[1743636954700,0.4279157,82671.0,82670.0,0.13344171]
[1743636958096,0.4279157,82671.0,82670.0,0.1071]
[1743636958304,0.3071157,82671.0,82670.0,0.1071]
[1743636958500,0.3071157,82671.0,82670.0,0.0851]
[1743636959890,0.3071157,82671.0,82670.0,0.1113234]
[1743636960291,0.1815157,82671.0,82670.0,0.1113234]
[1743636961091,0.1815157,82671.0,82670.0,0.12809918]
[1743636961492,0.3023157,82671.0,82670.0,0.1113234]
[1743636961688,0.1813205,82671.0,82650.0,0.3702287]
[1743636961896,0.121023,82652.0,82651.0,0.41468006]
[1743636962092,0.121023,82652.0,82651.0,0.518922]
[1743636962291,0.121023,82652.0,82651.0,0.3979]
[1743636962292,0.122663,82652.0,82651.0,0.3979]
[1743636962504,0.38870309,82652.0,82651.0,0.3979]
[1743636962704,0.00164,82652.0,82651.0,0.5189245]
[1743636963001,0.122663,82652.0,82651.0,0.5189245]
[1743636963601,0.122663,82652.0,82651.0,0.53537688]
[1743636965502,0.122663,82652.0,82651.0,0.51337688]
[1743636965705,0.39622912,82652.0,82651.0,0.51337688]
[1743636966607,0.39622912,82652.0,82651.0,0.39235238]
[1743636967204,0.52232912,82652.0,82651.0,0.14895238]
[1743636967504,0.39622912,82652.0,82651.0,0.26997688]
[1743636968903,0.39622912,82652.0,82651.0,0.39747688]
[1743636970105,0.1815035,82652.0,82651.0,0.39747688]
[1743636971104,0.1815035,82652.0,82651.0,0.01645238]
[1743636971303,0.1815035,82652.0,82631.0,0.0605265]
[1743636971304,0.1210377,82642.0,82641.0,0.1289]
[1743636971500,0.1226777,82642.0,82641.0,0.1289]
[1743636971694,0.3638777,82642.0,82641.0,0.1289]
[1743636971896,0.3638777,82642.0,82641.0,0.2499391]
[1743636972103,0.2449777,82642.0,82641.0,0.2499391]
[1743636972808,0.2449777,82642.0,82641.0,0.5887391]
[1743636973511,0.00164,82642.0,82641.0,0.5887391]
[1743636974607,0.00164,82642.0,82641.0,0.61569655]
[1743636975007,0.00164,82642.0,82641.0,0.25489655]
[1743636975205,0.1226777,82642.0,82641.0,0.25489655]
[1743636975909,0.1226777,82642.0,82641.0,0.2279391]
[1743636976394,0.1226777,82642.0,82641.0,0.3525391]
[1743636976796,0.1226777,82642.0,82641.0,0.7133391]
[1743636977395,0.1226777,82642.0,82641.0,0.7406195]
[1743636978105,0.1226777,82642.0,82641.0,0.5923]
[1743636978309,0.1226777,82642.0,82641.0,0.7133391]
[1743636978608,0.1815182,82642.0,82641.0,0.5923]
[1743636978809,0.4290182,82642.0,82641.0,0.5923]
[1743636979913,0.4290182,82642.0,82641.0,0.5703]
[1743636980609,0.4290182,82642.0,82641.0,0.2095]
[1743636983821,0.1210479,82635.0,82634.0,0.12708406]
[1743636984013,0.1226879,82635.0,82634.0,0.12708406]
[1743636984208,0.1226879,82635.0,82634.0,0.24908406]
[1743636984515,0.2458879,82635.0,82634.0,0.00048406]
[1743636984717,0.6066879,82635.0,82634.0,0.00048406]
[1743636984920,0.6066879,82635.0,82629.0,0.1195]
[1743636984921,0.1210553,82630.0,82629.0,0.1195]
[1743636985112,0.1226953,82630.0,82629.0,0.1195]
[1743636985308,0.3605953,82630.0,82629.0,0.1195]
[1743636985919,0.1210597,82627.0,82626.0,0.1266]
[1743636986215,0.12277971,82627.0,82626.0,0.1266]
[1743636986429,0.1210655,82623.0,82622.0,0.122]
[1743636986634,0.12278551,82623.0,82622.0,0.122]
[1743636986930,0.1210714,82619.0,82597.0,2.077825]
[1743636987134,0.1210875,82608.0,82607.0,0.1226]
[1743636987324,0.1210948,82603.0,82597.0,0.577825]
[1743636987632,0.1227748,82603.0,82601.0,0.1210976]
[1743636987931,0.00168,82603.0,82602.0,0.1210963]
[1743636988135,0.00168,82603.0,82602.0,0.2436963]
[1743636988425,0.2458748,82603.0,82602.0,0.2436963]
[1743636988927,0.12478,82603.0,82602.0,0.2436963]
[1743636989336,0.2458748,82603.0,82602.0,0.2436963]
[1743636989529,0.3614748,82603.0,82602.0,0.2436963]
[1743636990222,0.24038,82603.0,82602.0,0.2436963]
[1743636991333,0.3614748,82603.0,82602.0,0.2436963]
[1743636991532,0.12478,82603.0,82602.0,0.2436963]
[1743636991834,0.0588405,82608.0,82607.0,0.121089]
[1743636992044,0.0605205,82608.0,82607.0,0.121089]
[1743636992433,0.0588405,82608.0,82607.0,1.621089]
[1743636993025,0.179928,82608.0,82607.0,1.621089]
[1743636993219,0.179928,82608.0,82607.0,1.747689]
[1743636993427,0.00018153,82611.0,82610.0,0.1210846]
[1743636993628,0.12126463,82611.0,82610.0,0.1210846]
[1743636993828,0.12298464,82611.0,82610.0,0.1210846]
[1743636994226,0.1210859,82610.0,82608.0,0.0605431]
[1743636994429,0.2407646,82610.0,82609.0,0.2446]
[1743636995136,0.3600646,82610.0,82609.0,0.2446]
[1743636995334,0.2407646,82610.0,82609.0,0.2446]
[1743636995925,0.3559646,82610.0,82609.0,0.118]
[1743636996130,0.2407646,82610.0,82609.0,0.118]
[1743636997144,0.2407646,82610.0,82609.0,0.239086]
[1743636999931,0.2407646,82610.0,82609.0,0.118]
[1743637001726,0.2407646,82610.0,82609.0,0.2273]
[1743637002031,0.00168,82610.0,82609.0,0.348386]
[1743637002241,0.00018153,82611.0,82610.0,0.1210846]
[1743637002440,0.12126463,82611.0,82610.0,0.1210846]
[1743637002640,0.12298464,82611.0,82610.0,0.3389846]
[1743637002840,0.12298464,82611.0,82610.0,0.35524889]
[1743637003141,0.12298464,82611.0,82610.0,0.23416429]
[1743637003629,0.12298464,82611.0,82610.0,0.2179]
[1743637004129,0.23318464,82611.0,82610.0,0.2179]
[1743637004329,0.12298464,82611.0,82610.0,0.3389846]
[1743637004547,0.00190154,82611.0,82610.0,0.3389846]
[1743637004844,0.00018153,82611.0,82610.0,0.3389846]
[1743637005045,0.00182153,82611.0,82610.0,1.8552783]
[1743637005340,0.00018153,82611.0,82610.0,1.8552783]
[1743637005732,0.12126463,82611.0,82610.0,0.2341937]
[1743637005936,0.12290463,82611.0,82610.0,0.2341937]
[1743637006137,0.23000463,82611.0,82610.0,0.1248937]
[1743637006442,0.23000463,82611.0,82610.0,0.1086]
[1743637008645,0.28890676,82611.0,82610.0,0.1086]
[1743637008831,0.28890676,82611.0,82610.0,0.2252]
[1743637010348,0.1210978,82601.0,82592.0,0.0712477]
[1743637010550,0.1227378,82601.0,82599.0,0.1211002]
[1743637010742,0.1227378,82601.0,82599.0,0.1210999]
[1743637010945,0.1227378,82601.0,82600.0,0.3344]
[1743637011250,0.1227378,82601.0,82600.0,0.4554992]
[1743637011642,0.11434,82601.0,82600.0,0.5656992]
[1743637011838,0.2354378,82601.0,82600.0,0.5656992]
[1743637012147,0.11434,82601.0,82600.0,0.5656992]
[1743637012343,0.2354378,82601.0,82600.0,0.5820589]
[1743637012744,0.2337978,82601.0,82600.0,0.5820589]
[1743637013048,0.2354378,82601.0,82600.0,0.5820589]
[1743637013443,0.2354378,82601.0,82600.0,0.60826124]
[1743637016243,0.29433993,82601.0,82600.0,0.60826124]
[1743637017349,0.29433993,82601.0,82600.0,0.5820589]
[1743637018139,0.29433993,82601.0,82600.0,0.4609597]
[1743637018939,0.29433993,82601.0,82600.0,0.5820589]
[1743637019134,0.29433993,82601.0,82600.0,0.4609597]
[1743637019339,0.40213993,82601.0,82600.0,0.4609597]
[1743637019548,0.29433993,82601.0,82600.0,0.5820589]
[1743637020248,0.29433993,82601.0,82600.0,0.4609597]
[1743637020450,0.29433993,82601.0,82600.0,0.5820589]
[1743637021744,0.29433993,82601.0,82600.0,0.4609597]
[1743637022444,0.29433993,82601.0,82600.0,0.5820589]
[1743637023149,0.06054213,82601.0,82600.0,0.5820589]
[1743637023357,0.06054213,82601.0,82600.0,0.5656992]
[1743637023358,0.05890213,82601.0,82600.0,0.5656992]
[1743637023548,0.17999993,82601.0,82600.0,0.5656992]
[1743637023856,0.18163993,82601.0,82600.0,1.9446]
[1743637024053,0.29689993,82601.0,82600.0,0.4446]
[1743637024244,0.29853993,82601.0,82600.0,0.3344]
[1743637024760,0.29853993,82601.0,82600.0,0.5655992]
[1743637025055,0.29853993,82601.0,82600.0,0.9421318]
[1743637025441,0.29853993,82601.0,82600.0,0.3501326]
[1743637025852,0.29853993,82601.0,82600.0,0.3344]
[1743637026051,0.17744213,82601.0,82600.0,0.4554992]
[1743637026256,0.29853993,82601.0,82600.0,0.4554992]
[1743637026451,0.17744213,82601.0,82600.0,0.9271992]
[1743637026659,0.06058213,82601.0,82600.0,2.4271992]
[1743637026853,0.05890213,82601.0,82600.0,2.4271992]
[1743637027047,0.18537565,82601.0,82600.0,2.4271992]
[1743637027358,0.18537565,82601.0,82600.0,0.94316562]
[1743637027359,0.18701565,82601.0,82600.0,0.94316562]
[1743637027546,0.30811345,82601.0,82600.0,0.94316562]
[1743637027947,0.41871345,82601.0,82600.0,0.94316562]
[1743637028956,0.41871345,82601.0,82600.0,0.82206642]
[1743637030150,0.29223993,82601.0,82600.0,0.82206642]
[1743637030355,0.29223993,82601.0,82600.0,0.35036642]
[1743637030555,0.40433993,82601.0,82600.0,0.35036642]
[1743637031258,0.40433993,82601.0,82600.0,0.47146562]
[1743637031446,0.29223993,82601.0,82600.0,0.83226562]
[1743637032045,0.06054213,82601.0,82600.0,0.83226562]
[1743637032248,0.06054213,82601.0,82600.0,0.94756562]
[1743637033662,0.27650547,82601.0,82600.0,2.44756562]
[1743637034656,0.27486547,82601.0,82600.0,2.44756562]
[1743637035167,0.27650547,82601.0,82600.0,2.44756562]
[1743637035657,0.0605257,82633.0,82600.0,2.49329461]
[1743637035858,0.1135,82626.0,82625.0,0.1210626]
[1743637036060,0.2357211,82626.0,82625.0,0.4825426]
[1743637036269,0.2357211,82626.0,82625.0,0.37744642]
[1743637036554,0.2357211,82626.0,82625.0,1.51664642]
[1743637036760,0.121067,82622.0,82621.0,0.1172]
[1743637036960,0.122427,82622.0,82621.0,0.2389079]
[1743637037456,0.00136,82622.0,82621.0,0.2389079]
[1743637037658,0.16738256,82630.0,82621.0,0.2389079]
[1743637037659,0.16738256,82630.0,82626.0,0.1210611]
[1743637037847,0.1210714,82619.0,82617.0,0.00018153]
[1743637038048,0.3519728,82618.0,82617.0,0.00082153]
[1743637038359,0.35337281,82618.0,82617.0,0.00086153]
[1743637038658,0.35337281,82618.0,82617.0,0.00082153]
[1743637038957,0.11260001,82618.0,82617.0,0.23719583]
[1743637039159,0.00140001,82618.0,82617.0,0.34869583]
[1743637039360,0.1816085,82621.0,82620.0,0.1815983]
[1743637039559,0.00136,82621.0,82620.0,1.6829583]
[1743637039755,0.1210674,82622.0,82621.0,0.1210684]
[1743637039954,0.1210654,82624.0,82623.0,0.1815946]
[1743637040155,0.2322616,82626.0,82625.0,0.1210626]
[1743637040360,0.2322616,82626.0,82625.0,0.1217026]
[1743637040561,0.2322616,82626.0,82625.0,0.3485026]
[1743637040749,0.2322616,82626.0,82625.0,0.22744]
[1743637040949,0.2322616,82626.0,82625.0,0.00064]
[1743637041162,0.3467216,82626.0,82625.0,0.00064]
[1743637041754,0.1816019,82623.0,82622.0,0.1210668]
[1743637041954,0.1829619,82623.0,82622.0,0.1217468]
[1743637042757,0.1829619,82623.0,82622.0,0.2311468]
[1743637043059,0.1829619,82623.0,82622.0,0.3458468]
[1743637043758,0.00136,82623.0,82622.0,0.7066468]
[1743637043958,0.1224255,82623.0,82622.0,0.6846468]
[1743637044556,0.11926,82623.0,82622.0,0.6846468]
[1743637045562,0.00136,82623.0,82622.0,2.1846468]
[1743637045762,0.09606638,82625.0,82624.0,0.121064]
[1743637046063,0.1815967,82626.0,82625.0,0.1815879]
[1743637046667,0.1815967,82626.0,82625.0,0.2909302]
[1743637049369,0.1815967,82626.0,82625.0,0.2304]
[1743637049766,0.1210655,82623.0,82622.0,0.3608]
[1743637050274,0.3539655,82623.0,82622.0,0.58774]
[1743637050471,0.3539655,82623.0,82622.0,0.708807]
[1743637050772,0.1210616,82626.0,82625.0,0.1210626]
[1743637050970,0.1210616,82626.0,82625.0,0.0997826]
[1743637051167,0.1125,82626.0,82625.0,0.3260826]
[1743637051368,0.2335611,82626.0,82625.0,0.3260826]
[1743637051866,0.2349211,82626.0,82625.0,0.22702]
[1743637052069,0.2349211,82626.0,82625.0,0.10872]
[1743637052269,0.1210699,82620.0,82619.0,0.113]
[1743637052465,0.1210728,82618.0,82617.0,0.00018153]
[1743637052667,0.12247281,82618.0,82617.0,0.00082153]
[1743637053065,0.34967281,82618.0,82617.0,0.00082153]
[1743637054271,0.34967281,82618.0,82590.0,0.3608]
[1743637054272,0.1210934,82604.0,82603.0,0.2245]
[1743637054473,0.12265341,82604.0,82603.0,1.72514]
[1743637054683,0.3436934,82604.0,82603.0,1.72514]
[1743637054975,0.34525341,82604.0,82603.0,1.8462348]
[1743637055176,0.34525341,82604.0,82603.0,0.3462348]
[1743637055771,0.34525341,82604.0,82603.0,0.22514]
[1743637056671,0.34525341,82604.0,82603.0,0.3462348]
[1743637057469,0.34525341,82604.0,82603.0,0.22514]
[1743637057866,0.34525341,82604.0,82603.0,0.00064]
[1743637058176,0.1211051,82596.0,82595.0,8e-08]
[1743637058472,0.48378511,82596.0,82595.0,8e-08]
[1743637058667,0.69480291,82596.0,82595.0,8e-08]
[1743637058979,0.70389001,82596.0,82595.0,8e-08]
[1743637059674,0.74016711,82596.0,82576.0,0.1162]
[1743637059874,0.121133,82577.0,82576.0,0.1162]
[1743637060177,0.00176001,82577.0,82576.0,0.2373344]
[1743637060380,0.00176001,82577.0,82576.0,0.3518344]
[1743637060680,0.12289301,82577.0,82576.0,0.23959165]
[1743637060976,0.12289301,82577.0,82576.0,0.36072605]
[1743637060977,0.00176001,82577.0,82576.0,0.36072605]
[1743637061174,0.00176001,82577.0,82576.0,0.47372605]
[1743637061578,0.00018165,82585.0,82584.0,0.1211227]
[1743637061771,0.00018165,82585.0,82584.0,0.4819227]
[1743637062171,0.00018165,82585.0,82584.0,1.9819227]
[1743637062378,0.47304631,82618.0,82605.0,0.1210919]
[1743637062682,0.12285041,82606.0,82605.0,0.1210919]
[1743637063582,0.12285041,82606.0,82605.0,0.4721919]
[1743637064273,0.00176001,82606.0,82605.0,0.4721919]
[1743637064475,0.17769789,82610.0,82609.0,0.121086]
[1743637064683,0.12927789,82610.0,82609.0,0.121086]
[1743637064872,0.12927789,82610.0,82609.0,0.359386]
[1743637065275,0.25036249,82610.0,82609.0,0.359386]
[1743637066373,0.12927789,82610.0,82609.0,0.359386]
[1743637066578,0.0004,82627.0,82609.0,0.5991]
[1743637066579,0.17888553,82615.0,82609.0,0.5991]
[1743637066782,0.18064554,82615.0,82614.0,0.4818787]
[1743637067080,0.18064554,82615.0,82614.0,1.9818787]
[1743637067279,0.21466264,82620.0,82619.0,0.1210714]
[1743637067785,0.21466264,82620.0,82619.0,0.4718714]
[1743637067969,0.21466264,82620.0,82619.0,0.4810771]
[1743637068173,0.06476818,82620.0,82619.0,0.4810771]
[1743637068589,0.06476818,82620.0,82619.0,0.8418771]
[1743637069490,0.06476818,82620.0,82619.0,2.3418771]
[1743637069690,0.0004,82627.0,82625.0,0.1210626]
[1743637069877,0.0004,82627.0,82626.0,0.7093611]
[1743637070181,0.0004,82627.0,82626.0,0.72041631]
[1743637070382,0.0605146,82648.0,82642.0,0.1210377]
[1743637070580,0.2336,82656.0,82642.0,0.4818377]
[1743637070581,0.1214362,82643.0,82642.0,0.4818377]
[1743637070785,0.1214362,82643.0,82642.0,0.5883]
[1743637070989,0.1214362,82643.0,82642.0,0.3608]
[1743637070990,0.1232762,82643.0,82642.0,0.3608]
[1743637071685,0.3548762,82643.0,82642.0,0.3608]
[1743637072183,0.3548762,82643.0,82642.0,0.4598377]
[1743637072777,0.12234,82643.0,82642.0,0.4598377]
[1743637073085,0.00224,82643.0,82642.0,0.4598377]
[1743637073285,0.0004,82643.0,82642.0,0.6813377]
[1743637073483,0.0004,82643.0,82642.0,0.7936377]
[1743637073679,0.08469,82645.0,82642.0,0.7936377]
[1743637073878,0.00018154,82651.0,82650.0,0.121026]
[1743637074079,0.25119901,82667.0,82650.0,0.121026]
[1743637074080,0.25119901,82667.0,82666.0,0.1210025]
[1743637074283,0.25295902,82667.0,82666.0,0.7942125]
[1743637074878,0.25295902,82667.0,82666.0,1.0377351]
[1743637075985,0.25295902,82667.0,82666.0,1.04698707]
[1743637076185,0.28702496,82672.0,82671.0,0.1209952]
[1743637076390,0.40921877,82672.0,82669.0,0.0604984]
[1743637076686,0.1209952,82671.0,82670.0,1.7328]
[1743637076982,0.1209952,82671.0,82670.0,2.2145952]
[1743637076983,0.12219521,82671.0,82670.0,2.2145952]
[1743637077184,0.2414952,82671.0,82670.0,2.2145952]
[1743637077574,0.0604967,82673.0,82672.0,0.1209938]
[1743637079277,0.1209952,82671.0,82670.0,0.1136]
[1743637079482,0.1210011,82667.0,82666.0,0.00925197]
[1743637079779,0.1210025,82666.0,82665.0,0.1210036]
[1743637079984,0.00120001,82666.0,82665.0,0.3542036]
[1743637080197,0.1210025,82666.0,82665.0,0.3548436]
[1743637080384,0.12220251,82666.0,82665.0,0.23384]
[1743637080892,0.12220251,82666.0,82665.0,0.24296386]
[1743637081079,0.34910251,82666.0,82665.0,0.24296386]
[1743637081285,0.11470001,82666.0,82665.0,0.36396786]
[1743637081483,0.23570251,82666.0,82665.0,0.36396786]
[1743637083289,0.23570251,82666.0,82665.0,0.13076786]
[1743637084993,0.00120001,82666.0,82665.0,0.25136786]
[1743637085196,0.04838,82673.0,82672.0,0.1209938]
[1743637085495,0.12219231,82673.0,82672.0,0.1221938]
[1743637085695,0.12219231,82673.0,82672.0,0.3595938]
[1743637086199,0.23779231,82673.0,82672.0,0.3595938]
[1743637086390,0.23779231,82673.0,82672.0,0.0012]
[1743637086589,0.1210025,82666.0,82665.0,0.00912386]
[1743637086789,0.1210025,82666.0,82665.0,0.00064]
[1743637086998,0.1222825,82666.0,82665.0,0.00971763]
[1743637087299,0.8303825,82666.0,82665.0,0.00064]
[1743637087602,0.1815162,82662.0,82661.0,0.1210094]
[1743637087894,0.18271621,82662.0,82661.0,0.00983211]
[1743637088197,0.1210128,82659.0,82658.0,0.00018154]
[1743637088398,0.1222928,82659.0,82658.0,0.00082154]
[1743637088594,0.3543928,82659.0,82658.0,0.00082154]
[1743637088789,0.3543928,82659.0,82658.0,0.00018154]
[1743637089494,0.3543928,82659.0,82658.0,0.00082154]
[1743637089694,0.3543928,82659.0,82658.0,0.00914215]
[1743637089995,0.3543928,82659.0,82658.0,0.00018154]
[1743637093402,0.1210333,82645.0,82644.0,0.21228154]
[1743637093705,0.12223331,82645.0,82644.0,0.21292154]
[1743637094004,0.23333331,82645.0,82644.0,0.21292154]
[1743637094994,0.23333331,82645.0,82644.0,0.34305291]
[1743637095503,0.11230001,82645.0,82644.0,0.34305291]
[1743637095705,0.18171654,82653.0,82652.0,0.121023]
[1743637095897,0.18295655,82653.0,82652.0,0.00064]
[1743637096295,0.18295655,82653.0,82652.0,0.11524]
[1743637096694,0.18295655,82653.0,82652.0,0.23094]
[1743637098090,0.18295655,82653.0,82652.0,0.00064]
[1743637098904,0.18295655,82653.0,82652.0,0.23404]
[1743637100501,0.18295655,82653.0,82652.0,0.21204]
[1743637100702,0.18295655,82653.0,82652.0,0.21268]
[1743637103792,0.00142155,82653.0,82652.0,0.333703]
[1743637104002,0.19562124,82680.0,82652.0,0.333703]
[1743637104003,0.01109259,82681.0,82652.0,0.32848]
[1743637104304,0.1,82700.0,82690.0,0.1209674]
[1743637104499,0.00180001,82691.0,82690.0,0.1209674]
[1743637104695,0.12276601,82691.0,82690.0,0.00064]
[1743637105202,0.12276601,82691.0,82690.0,0.1216074]
[1743637106003,0.12276601,82691.0,82690.0,0.00064]
[1743637106300,0.23096601,82691.0,82690.0,0.00956966]
[1743637107105,0.12276601,82691.0,82690.0,0.13053706]
[1743637107604,0.12276601,82691.0,82690.0,0.24303706]
[1743637107902,0.00180001,82691.0,82690.0,0.24303706]
[1743637108102,0.0004,82691.0,82690.0,0.71433706]
[1743637108506,0.0004,82691.0,82690.0,2.21433706]
[1743637108802,0.121366,82691.0,82690.0,2.21433706]
[1743637108994,0.0004,82691.0,82690.0,2.21433706]
[1743637109410,0.121366,82691.0,82690.0,2.21433706]
[1743637109610,0.121366,82691.0,82690.0,0.48286966]
[1743637109807,0.12276601,82691.0,82690.0,0.48286966]
[1743637110005,0.12276601,82691.0,82690.0,0.60383706]
[1743637110312,0.12276601,82691.0,82682.0,0.0001814]
[1743637110313,0.1209777,82683.0,82682.0,0.0001814]
[1743637110501,0.48337771,82683.0,82682.0,0.0001814]
[1743637110702,0.1814877,82674.0,82673.0,0.120991]
[1743637111019,0.54388771,82674.0,82673.0,0.120991]
[1743637111195,0.54388771,82674.0,82673.0,0.2419829]
[1743637112103,0.1814921,82672.0,82671.0,0.1209949]
[1743637112310,0.1831721,82672.0,82671.0,0.1209949]
[1743637112510,0.1831721,82672.0,82671.0,0.2411949]
[1743637112807,0.1831721,82672.0,82671.0,0.12910555]
[1743637113609,0.2985721,82672.0,82671.0,0.12910555]
[1743637113810,0.4153721,82672.0,82671.0,0.12910555]
[1743637114012,0.2985721,82672.0,82671.0,0.12910555]
[1743637114609,0.2985721,82672.0,82671.0,0.10710555]
[1743637116107,0.00168,82672.0,82671.0,0.22810075]
[1743637116623,0.1226738,82672.0,82671.0,0.22810075]
[1743637117006,0.1226738,82672.0,82671.0,1.72810075]
[1743637117315,0.1209938,82672.0,82671.0,0.22810075]
[1743637117615,0.12263381,82672.0,82671.0,0.22810075]
[1743637118414,0.12263381,82672.0,82671.0,0.34300075]
[1743637119617,0.00164001,82672.0,82671.0,0.34300075]
[1743637119912,0.12263381,82672.0,82671.0,0.34300075]
[1743637120514,0.00164001,82672.0,82671.0,1.84300075]
[1743637120716,0.1211621,82682.0,82681.0,0.1209806]
[1743637121014,0.1211621,82682.0,82671.0,2.18268555]
[1743637121015,0.1209938,82672.0,82671.0,1.72200555]
[1743637121207,0.1209938,82672.0,82671.0,1.84300075]
[1743637121408,0.2279938,82672.0,82671.0,1.84300075]
[1743637121615,0.2279938,82672.0,82671.0,1.82100075]
[1743637121811,0.107,82672.0,82671.0,1.82100075]
[1743637122117,0.0001814,82682.0,82681.0,0.1209806]
[1743637122418,0.0013414,82682.0,82681.0,0.3414806]
[1743637122718,0.0001814,82682.0,82681.0,0.3414806]
[1743637123014,0.00130141,82682.0,82681.0,1.8414806]
[1743637123214,0.0001814,82682.0,82681.0,1.8414806]
[1743637124808,0.1211605,82682.0,82681.0,1.6059]
[1743637125010,0.1211605,82682.0,82681.0,0.2275606]
[1743637125228,0.34168051,82682.0,82681.0,0.2275606]
[1743637125812,0.22070141,82682.0,82681.0,0.2275606]
[1743637126007,0.11490141,82682.0,82681.0,0.2275606]
[1743637126212,0.11490141,82682.0,82681.0,0.3393606]
[1743637126606,0.11490141,82682.0,82681.0,1.8393606]
[1743637127721,0.23588051,82682.0,82681.0,1.6216606]
[1743637128318,0.34548051,82682.0,82681.0,1.6216606]
[1743637129012,0.34548051,82682.0,82681.0,0.00068]
[1743637129220,0.34548051,82682.0,82681.0,0.1209806]
[1743637129617,0.22450141,82682.0,82681.0,0.1217006]
[1743637129814,0.11490141,82682.0,82681.0,0.2273006]
[1743637130016,0.11490141,82682.0,82681.0,0.3355006]
[1743637130312,0.11490141,82682.0,82681.0,0.2273006]
[1743637133525,0.11490141,82682.0,82681.0,0.3342006]
[1743637134319,0.0004,82691.0,82690.0,0.1209674]
[1743637134624,0.00116,82691.0,82690.0,0.1216474]
[1743637135029,0.00116,82691.0,82690.0,1.8367474]
[1743637136027,0.122126,82691.0,82690.0,1.8367474]
[1743637136526,0.226726,82691.0,82690.0,1.8367474]
[1743637137231,0.226726,82691.0,82690.0,0.00068]
[1743637137430,0.226726,82691.0,82690.0,0.1209674]
[1743637137830,0.226726,82691.0,82690.0,0.1216074]
[1743637138132,0.226726,82691.0,82690.0,0.2316074]
[1743637138620,0.226726,82691.0,82690.0,0.3465074]
[1743637138826,0.226726,82691.0,82690.0,0.2316074]
[1743637139027,0.337426,82691.0,82690.0,0.2316074]
[1743637139325,0.226726,82691.0,82690.0,0.2316074]
[1743637139527,0.10576,82691.0,82690.0,0.3465074]
[1743637140623,0.00116,82691.0,82690.0,0.4594074]
[1743637140827,0.04837,82694.0,82693.0,0.120963]
[1743637141028,0.04905,82694.0,82693.0,0.121643]
[1743637141229,0.00068,82694.0,82693.0,0.340543]
[1743637142236,0.00068,82694.0,82693.0,0.34948805]
[1743637146734,0.1098,82695.0,82694.0,0.1209616]
[1743637146936,0.11048,82695.0,82694.0,0.1216416]
[1743637147135,0.11048,82695.0,82694.0,0.3499416]
[1743637149533,0.11048,82695.0,82694.0,1.8499416]
[1743637149835,0.1098,82695.0,82694.0,1.8499416]
[1743637152732,0.1098,82695.0,82694.0,1.86572167]
[1743637155352,0.0004,82707.0,82701.0,0.0604755]
[1743637155538,0.4658,82722.0,82721.0,0.1209221]
[1743637155739,0.46644,82722.0,82721.0,0.1216021]
[1743637155938,0.46644,82722.0,82721.0,0.2302021]
[1743637156137,0.46644,82722.0,82721.0,1.7302021]
[1743637156440,0.00064,82722.0,82721.0,1.7302021]
[1743637156641,0.1139,82722.0,82721.0,1.8377021]
[1743637157241,0.0001814,82730.0,82726.0,0.0604569]
[1743637157438,0.1139,82729.0,82728.0,0.1209119]
[1743637157637,0.11466,82729.0,82728.0,0.3347919]
[1743637158143,0.11466,82729.0,82728.0,0.35050595]
[1743637158444,0.11466,82729.0,82728.0,0.01639405]
[1743637158445,0.5963704,82729.0,82728.0,0.01639405]
[1743637158640,0.1209323,82714.0,82713.0,0.1211119]
[1743637158837,0.3608,82721.0,82720.0,0.1209235]
[1743637159040,0.36176001,82721.0,82720.0,0.2272635]
[1743637159542,0.36176001,82721.0,82720.0,0.3369635]
[1743637160338,0.36176001,82721.0,82720.0,0.1215635]
[1743637160739,0.00096001,82721.0,82720.0,0.1215635]
[1743637160947,0.1083,82725.0,82724.0,0.1209177]
[1743637161145,0.10938,82725.0,82724.0,0.1216777]
[1743637161343,0.10938,82725.0,82724.0,1.6216777]
[1743637161737,0.00108,82725.0,82724.0,2.0941777]
[1743637161935,0.1157,82726.0,82725.0,0.1209162]